fUST/lending_fUST_20250914
["ID","MTS","AMOUNT","RATE_DAILY","PERIOD"]
[385444499,1757854247586,-151.0,0.00022191,7]
[385444500,1757854247595,-151.0,0.00022191,7]
[385444501,1757854247604,-480.0,0.00022191,3]
[385444502,1757854247613,-613.37,0.00022191,3]
[385444503,1757854247622,-151.0,0.00022191,7]
[385444504,1757854247632,-151.0,0.00022191,7]
[385444505,1757854247641,-151.0,0.00022191,7]
[385444506,1757854247650,-267.295304,0.00022191,7]
[385444507,1757854247660,-596.7120857,0.00022191,3]
[385444508,1757854247669,-805.83,0.00022191,3]
[385444509,1757854247678,-271.18121365,0.00022191,3]
[385444510,1757854247687,-897.32,0.00022191,3]
[385444511,1757854247697,-3265.71,0.00022191,3]
[385444512,1757854247706,-480.0,0.00022191,3]
[385444513,1757854247715,-482.7268594,0.00022191,3]
[385444514,1757854247724,-1597.56,0.00022191,3]
[385444515,1757854247735,-480.0,0.00022191,3]
[385444516,1757854247745,-1553.33,0.00022191,3]
[385444517,1757854247754,-1106.6,0.00022191,3]
[385444518,1757854247763,-480.0,0.00022191,3]
[385444519,1757854247773,-1261.78,0.00022191,3]
[385444520,1757854247782,-480.0,0.00022191,3]
[385444521,1757854247791,-1081.55,0.00022191,3]
[385444522,1757854247801,-576.17907171,0.00022191,3]
[385444523,1757854247810,-3100.77,0.00022191,3]
[385444524,1757854247820,-1530.3,0.00022191,3]
[385444525,1757854247829,-2940.46,0.00022191,3]
[385444526,1757854247838,-480.0,0.00022191,3]
[385444527,1757854247847,-984.55,0.00022191,3]
[385444528,1757854247857,-786.11,0.00022191,3]
[385444529,1757854247866,-2316.74,0.00022191,3]
[385444530,1757854247875,-480.0,0.00022191,3]
[385444531,1757854247884,-480.0,0.00022191,3]
[385444532,1757854247895,-686.24,0.00022191,3]
[385444533,1757854247904,-386.23740906,0.00022191,3]
[385444534,1757854247913,-480.0,0.00022191,3]
[385444535,1757854247923,-4090.52,0.00022191,3]
[385444536,1757854247931,-480.0,0.00022191,3]
[385444537,1757854247941,-7056.76,0.00022191,3]
[385444538,1757854247950,-480.0,0.00022191,3]
[385444539,1757854247960,-480.0,0.00022191,3]
[385444540,1757854247969,-480.0,0.00022191,3]
[385444541,1757854247978,-650.22,0.00022191,3]
[385444542,1757854247988,-480.0,0.00022191,3]
[385444543,1757854247997,-480.0,0.00022191,3]
[385444544,1757854248007,-923.4,0.00022191,3]
[385444545,1757854248016,-715.22,0.00022191,3]
[385444546,1757854248026,-858.92,0.00022191,3]
[385444547,1757854248036,-500.0,0.00022191,3]
[385444548,1757854248045,-480.0,0.00022191,3]
[385444549,1757854248055,-4549.46,0.00022191,3]
[385444550,1757854248064,-480.0,0.00022191,3]
[385444551,1757854248074,-694.26,0.00022191,3]
[385444552,1757854248083,-488.90367269,0.00022191,3]
[385444553,1757854248092,-14980.09,0.00022191,3]
[385444554,1757854248101,-1073.88,0.00022191,3]
[385444555,1757854248111,-151.0,0.00022191,7]
[385444556,1757854248121,-151.0,0.00022191,7]
[385444557,1757854248130,-1587.74,0.00022191,3]
[385444558,1757854248139,-480.0,0.00022191,3]
[385444559,1757854248148,-1220.4,0.00022191,3]
[385444560,1757854248157,-1083.7,0.00022191,3]
[385444561,1757854248167,-933.79,0.00022191,3]
[385444562,1757854248176,-480.0,0.00022191,3]
[385444563,1757854248186,-564.4,0.00022191,3]
[385444564,1757854248195,-480.0,0.00022191,2]
[385444565,1757854248204,-2126.4,0.00022191,3]
[385444566,1757854248214,-3237.49,0.00022191,3]
[385444567,1757854248223,-1940.86,0.00022191,3]
[385444568,1757854248232,-480.0,0.00022191,3]
[385444569,1757854248243,-152.99899868,0.00022191,3]
[385444570,1757854248252,-1448.77,0.00022191,3]
[385444571,1757854248262,-480.0,0.00022191,3]
[385444572,1757854248271,-446.71513721,0.00022191,3]
[385444573,1757854248281,-469.0565227,0.00022192,2]
[385444574,1757854248290,-151.0,0.000222,6]
[385444575,1757854248300,-151.0,0.000222,5]
[385444576,1757854248309,-151.0,0.000222,10]
[385444577,1757854248322,-942.0,0.00022233,2]
[385444578,1757854248331,-804.0,0.0002229,2]
[385444579,1757854248340,-615.81324317,0.0002229,2]
[385444580,1757854248350,-151.0,0.000223,6]
[385444581,1757854248359,-213.82,0.000223,7]
[385444582,1757854248368,-151.0,0.000223,8]
[385444583,1757854248378,-214.64016926,0.00022302,2]
[385444584,1757854248387,-209.0,0.0002232,2]
[385444585,1757854248398,-176.24354705,0.00022365,2]
[385444586,1757854248409,-151.0,0.00022398,7]
[385444587,1757854248418,-2779.76525479,0.00022398,2]
[385444588,1757854248427,-2464.61,0.000224,7]
[385444589,1757854248436,-151.0,0.000224,8]
[385444590,1757854248446,-151.0,0.000224,8]
[385444591,1757854248455,-151.0,0.000224,5]
[385444592,1757854248464,-151.0,0.000224,8]
[385444593,1757854248474,-9786.51368464,0.00022454,2]
[385444594,1757854248486,-155.0,0.00022464,2]
[385444595,1757854248495,-500.0,0.00022465,3]
[385444596,1757854248509,-480.0,0.00022465,3]
[385444597,1757854248518,-480.0,0.00022465,3]
[385444598,1757854248527,-497.44,0.00022465,3]
[385444599,1757854248536,-480.0,0.00022465,3]
[385444600,1757854248545,-151.0,0.00022465,7]
[385444601,1757854248555,-756.64,0.00022465,3]
[385444602,1757854248563,-480.0,0.00022465,3]
[385444603,1757854248573,-480.0,0.00022465,3]
[385444604,1757854248582,-151.0,0.00022465,7]
[385444605,1757854248591,-284.2095,0.00022465,7]
[385444606,1757854248710,-487.62795266,0.00022465,3]
[385444607,1757854248735,-480.0,0.00022465,3]
[385444608,1757854248745,-930.31,0.00022465,3]
[385444609,1757854248754,-480.0,0.00022465,3]
[385444610,1757854248764,-896.79,0.00022465,3]
[385444611,1757854248774,-480.0,0.00022465,3]
[385444612,1757854248785,-480.0,0.00022465,3]
[385444613,1757854248794,-480.0,0.00022465,3]
[385444614,1757854248807,-505.34250469,0.00022465,3]
[385444615,1757854248817,-480.0,0.00022465,3]
[385444616,1757854248826,-608.9,0.00022465,3]
[385444617,1757854248836,-519.2652221,0.00022465,3]
[385444618,1757854248845,-480.0,0.00022465,3]
[385444619,1757854248855,-480.0,0.00022465,3]
[385444620,1757854248864,-507.98928696,0.00022465,3]
[385444621,1757854248875,-1040.01,0.00022465,3]
[385444622,1757854248884,-648.06,0.00022465,3]
[385444623,1757854248893,-480.0,0.00022465,3]
[385444624,1757854248902,-247.80611575,0.00022465,3]
[385444625,1757854248911,-396.94283022,0.00022465,3]
[385444626,1757854248921,-480.0,0.00022465,3]
[385444627,1757854248930,-480.0,0.00022465,3]
[385444628,1757854248939,-480.0,0.00022465,3]
[385444629,1757854248949,-491.5,0.00022465,3]
[385444630,1757854248958,-214.02317887,0.00022465,3]
[385444631,1757854248968,-738.87,0.00022465,3]
[385444632,1757854248977,-934.23,0.00022465,3]
[385444633,1757854249004,-151.0,0.00022465,7]
[385444634,1757854249014,-480.0,0.00022465,3]
[385444635,1757854249024,-1073.06,0.00022465,3]
[385444636,1757854249034,-480.0,0.00022465,3]
[385444637,1757854249044,-480.0,0.00022465,3]
[385444638,1757854249054,-480.0,0.00022465,3]
[385444639,1757854249063,-753.94,0.00022465,3]
[385444640,1757854249073,-480.0,0.00022465,3]
[385444641,1757854249082,-480.0,0.00022465,3]
[385444642,1757854249091,-480.0,0.00022465,3]
[385444643,1757854249101,-480.0,0.00022465,3]
[385444644,1757854249110,-480.0,0.00022465,3]
[385444645,1757854249119,-480.0,0.00022465,3]
[385444646,1757854249128,-434.95350348,0.00022465,3]
[385444647,1757854249138,-2120.31,0.00022465,3]
[385444648,1757854249147,-482.13,0.00022465,3]
[385444649,1757854249157,-480.0,0.00022465,3]
[385444650,1757854249166,-480.0,0.00022465,3]
[385444651,1757854249175,-480.0,0.00022465,3]
[385444652,1757854249185,-480.0,0.00022465,3]
[385444653,1757854249194,-423.40459866,0.00022465,3]
[385444654,1757854249204,-480.0,0.00022465,3]
[385444655,1757854249213,-1001.38,0.00022465,3]
[385444656,1757854249223,-1044.6,0.00022465,3]
[385444657,1757854249232,-713.34,0.00022465,3]
[385444658,1757854249242,-480.0,0.00022465,3]
[385444659,1757854249252,-799.97,0.00022465,3]
[385444660,1757854249261,-480.0,0.00022465,3]
[385444661,1757854249271,-490.17684946,0.00022465,3]
[385444662,1757854249280,-480.0,0.00022465,3]
[385444663,1757854249289,-480.0,0.00022465,3]
[385444664,1757854249298,-480.0,0.00022465,3]
[385444665,1757854249308,-480.0,0.00022465,3]
[385444666,1757854249319,-480.0,0.00022465,3]
[385444667,1757854249328,-480.0,0.00022465,3]
[385444668,1757854249337,-190.38312114,0.00022465,3]
[385444669,1757854249346,-480.0,0.00022465,3]
[385444670,1757854249355,-480.0,0.00022465,3]
[385444671,1757854249364,-430.64252563,0.00022465,3]
[385444672,1757854249373,-480.0,0.00022465,3]
[385444673,1757854249383,-531.61,0.00022465,3]
[385444674,1757854249392,-480.0,0.00022465,3]
[385444675,1757854249401,-480.0,0.00022465,3]
[385444676,1757854249410,-354.7776158,0.00022465,3]
[385444677,1757854249419,-983.67,0.00022465,3]
[385444678,1757854249428,-492.71,0.00022465,3]
[385444679,1757854249437,-623.98,0.00022465,3]
[385444680,1757854249446,-480.0,0.00022465,3]
[385444681,1757854249455,-480.0,0.00022465,3]
[385444682,1757854249464,-480.0,0.00022465,3]
[385444683,1757854249473,-480.0,0.00022465,3]
[385444684,1757854249483,-479.2635823,0.00022465,3]
[385444685,1757854249492,-480.0,0.00022465,3]
[385444686,1757854249502,-943.73,0.00022465,3]
[385444687,1757854249511,-604.43,0.00022465,3]
[385444688,1757854249521,-1302.56,0.00022465,3]
[385444689,1757854249530,-928.58,0.00022465,3]
[385444690,1757854249539,-480.0,0.00022465,3]
[385444691,1757854249548,-529.82,0.00022465,3]
[385444692,1757854249557,-1271.9,0.00022465,3]
[385444693,1757854249566,-480.0,0.00022465,3]
[385444694,1757854249575,-523.04,0.00022465,3]
[385444695,1757854249584,-1138.11,0.00022465,3]
[385444696,1757854249593,-480.0,0.00022465,3]
[385444697,1757854249604,-581.45,0.00022465,3]
[385444698,1757854249613,-1156.04,0.00022465,3]
[385444699,1757854249623,-480.0,0.00022465,3]
[385444700,1757854249632,-480.0,0.00022465,3]
[385444701,1757854249641,-480.0,0.00022465,3]
[385444702,1757854249650,-526.66,0.00022465,3]
[385444703,1757854249660,-486.69,0.00022465,3]
[385444704,1757854249670,-480.0,0.00022465,3]
[385444705,1757854249680,-480.0,0.00022465,3]
[385444706,1757854249689,-480.0,0.00022465,3]
[385444707,1757854249698,-480.0,0.00022465,3]
[385444708,1757854249707,-480.0,0.00022465,3]
[385444709,1757854249716,-664.43,0.00022465,3]
[385444710,1757854249725,-749.07,0.00022465,3]
[385444711,1757854249735,-853.45,0.00022465,3]
[385444712,1757854249744,-790.19,0.00022465,3]
[385444713,1757854249754,-662.11,0.00022465,3]
[385444714,1757854249763,-480.0,0.00022465,3]
[385444715,1757854249773,-550.1,0.00022465,3]
[385444716,1757854249782,-151.0,0.00022465,7]
[385444717,1757854249791,-626.24,0.00022465,3]
[385444718,1757854249800,-480.0,0.00022465,3]
[385444719,1757854249810,-2469.07,0.00022465,3]
[385444720,1757854249820,-886.65,0.00022465,3]
[385444721,1757854249829,-3965.06,0.00022465,3]
[385444722,1757854249839,-5580.09,0.00022465,3]
[385444723,1757854249848,-1081.02,0.00022465,3]
[385444724,1757854249858,-970.87,0.00022465,3]
[385444725,1757854249867,-905.01,0.00022465,3]
[385444726,1757854249876,-1060.11,0.00022465,3]
[385444727,1757854249885,-615.45127821,0.00022465,3]
[385444728,1757854250050,-2060.35663519,0.00022465,3]
[385444729,1757854250061,-30.1420866,0.00022465,3]
[385444730,1757854250071,-509.96,0.00022465,3]
[385444731,1757854250081,-480.0,0.00022465,3]
[385444732,1757854250090,-480.0,0.00022465,3]
[385444733,1757854250099,-1260.47,0.00022465,3]
[385444734,1757854250109,-480.0,0.00022465,3]
[385444735,1757854250118,-459.07127821,0.00022465,3]
[385444736,1757854250214,-20.92872179,0.00022465,3]
[385444737,1757854250223,-1023.04,0.00022465,3]
[385444738,1757854250232,-480.0,0.00022465,3]
[385444739,1757854250242,-1405.4,0.00022465,3]
[385444740,1757854250251,-373.43,0.00022465,2]
[385444741,1757854250261,-151.0,0.00022465,7]
[385444742,1757854250270,-200.53327844,0.00022465,7]
[385444743,1757854250280,-480.0,0.00022465,3]
[385444744,1757854250289,-593.73,0.00022465,3]
[385444745,1757854250298,-555.34,0.00022465,3]
[385444746,1757854250308,-697.89,0.00022465,3]
[385444747,1757854250320,-604.47,0.00022465,3]
[385444748,1757854250330,-526.88,0.00022465,3]
[385444749,1757854250339,-25006.64,0.00022465,3]
[385444750,1757854250349,-3632.54,0.00022465,3]
[385444751,1757854250358,-1162.09,0.00022465,3]
[385444752,1757854250369,-1392.4,0.00022465,3]
[385444753,1757854250378,-1433.83,0.00022465,3]
[385444754,1757854250387,-503.68,0.00022465,3]
[385444755,1757854250398,-722.53,0.00022465,3]
[385444756,1757854250407,-778.67,0.00022465,3]
[385444757,1757854250416,-1132.59,0.00022465,3]
[385444758,1757854250426,-1773.02071041,0.00022465,3]
[385444759,1757854250678,-338.32928959,0.00022465,3]
[385444760,1757854250688,-834.67,0.00022465,3]
[385444761,1757854250697,-480.0,0.00022465,3]
[385444762,1757854250706,-634.66,0.00022465,3]
[385444763,1757854250716,-2835.58,0.00022465,3]
[385444764,1757854250725,-537.75,0.00022465,3]
[385444765,1757854250737,-766.57,0.00022465,3]
[385444766,1757854250746,-1218.92071041,0.00022465,3]
[385444767,1757854250758,-5177.09928959,0.00022465,3]
[385444768,1757854250768,-480.0,0.00022465,3]
[385444769,1757854250777,-151.0,0.00022465,7]
[385444770,1757854250787,-178.45454919,0.00022465,3]
[385444771,1757854250797,-151.0,0.00022465,7]
[385444772,1757854250807,-613.37,0.00022465,3]
[385444773,1757854250816,-151.0,0.00022465,7]
[385444774,1757854250825,-805.83,0.00022465,3]
[385444775,1757854250834,-897.32,0.00022465,3]
[385444776,1757854250844,-3265.71,0.00022465,3]
[385444777,1757854250854,-480.0,0.00022465,3]
[385444778,1757854250864,-1597.56,0.00022465,3]
[385444779,1757854250876,-480.0,0.00022465,3]
[385444780,1757854250885,-1553.33,0.00022465,3]
[385444781,1757854250895,-1106.6,0.00022465,3]
[385444782,1757854250904,-480.0,0.00022465,3]
[385444783,1757854250914,-1261.78,0.00022465,3]
[385444784,1757854250923,-480.0,0.00022465,3]
[385444785,1757854250933,-1081.55,0.00022465,3]
[385444786,1757854250942,-792.77985217,0.00022465,3]
[385444787,1757854250953,-2307.99014783,0.00022465,3]
[385444788,1757854250962,-1530.3,0.00022465,3]
[385444789,1757854250972,-1480.42750174,0.00022465,3]
[385444790,1757854250983,-1460.03249826,0.00022465,3]
[385444791,1757854250994,-480.0,0.00022465,3]
[385444792,1757854251004,-984.55,0.00022465,3]
[385444793,1757854251013,-786.11,0.00022465,3]
[385444794,1757854251023,-2316.74,0.00022465,3]
[385444795,1757854251032,-480.0,0.00022465,3]
[385444796,1757854251042,-480.0,0.00022465,3]
[385444797,1757854251052,-686.24,0.00022465,3]
[385444798,1757854251063,-480.0,0.00022465,3]
[385444799,1757854251072,-4090.52,0.00022465,3]
[385444800,1757854251082,-7056.76,0.00022465,3]
[385444801,1757854251092,-480.0,0.00022465,3]
[385444802,1757854251106,-480.0,0.00022465,3]
[385444803,1757854251141,-502.30344361,0.00022465,3]
[385444804,1757854251162,-650.22,0.00022465,3]
[385444805,1757854251177,-480.0,0.00022465,3]
[385444806,1757854251187,-923.4,0.00022465,3]
[385444807,1757854251196,-715.22,0.00022465,3]
[385444808,1757854251206,-500.0,0.00022465,3]
[385444809,1757854251215,-480.0,0.00022465,3]
[385444810,1757854251225,-4549.46,0.00022465,3]
[385444811,1757854251234,-480.0,0.00022465,3]
[385444812,1757854251245,-694.26,0.00022465,3]
[385444813,1757854251255,-14980.09,0.00022465,3]
[385444814,1757854251265,-1073.88,0.00022465,3]
[385444815,1757854251274,-151.0,0.00022465,7]
[385444816,1757854251283,-1587.74,0.00022465,3]
[385444817,1757854251292,-480.0,0.00022465,3]
[385444818,1757854251302,-1220.4,0.00022465,3]
[385444819,1757854251312,-1083.7,0.00022465,3]
[385444820,1757854251326,-933.79,0.00022465,3]
[385444821,1757854251456,-480.0,0.00022465,3]
[385444822,1757854251465,-564.4,0.00022465,3]
[385444823,1757854251475,-433.7267015,0.00022465,2]
[385444824,1757854251488,-46.2732985,0.00022465,2]
[385444825,1757854251497,-2126.4,0.00022465,3]
[385444826,1757854251507,-3237.49,0.00022465,3]
[385444827,1757854251516,-1940.86,0.00022465,3]
[385444828,1757854251525,-480.0,0.00022465,3]
[385444829,1757854251534,-67.2310222,0.00022465,3]
[385444830,1757854251546,-1381.5389778,0.00022465,3]
[385444831,1757854251555,-480.0,0.00022465,3]
[385444832,1757854251564,-500.0,0.00022473,2]
[385444833,1757854251574,-500.0,0.00022473,2]
[385444834,1757854251584,-500.0,0.00022473,2]
[385444835,1757854251594,-500.0,0.00022473,2]
[385444836,1757854251604,-500.54421837,0.00022473,2]
[385444837,1757854251614,-589.32518645,0.00022473,2]
[385444838,1757854251623,-500.0,0.00022473,2]
[385444839,1757854251635,-500.0,0.00022473,2]
[385444840,1757854251646,-500.0,0.00022473,2]
[385444841,1757854251655,-500.0,0.00022473,2]
[385444842,1757854251665,-500.0,0.00022473,2]
[385444843,1757854251674,-500.49642979,0.00022473,2]
[385444844,1757854251684,-500.0,0.00022473,2]
[385444845,1757854251694,-500.0,0.00022473,2]
[385444846,1757854251703,-342.196883,0.00022473,2]
[385444847,1757854252014,-500.0,0.00021703,2]
[385444848,1757854252024,-500.0,0.00021703,2]
[385444849,1757854252034,-500.0,0.00021703,2]
[385444850,1757854252044,-500.0,0.00021703,2]
[385444851,1757854252054,-500.0,0.00021703,2]
[385444852,1757854252062,-222.40192163,0.00021703,2]
[385444853,1757854252075,-277.59807837,0.00021703,2]
[385444854,1757854252084,-500.0,0.00021703,2]
[385444855,1757854252093,-500.0,0.00021703,2]
[385444856,1757854252102,-500.0,0.00021703,2]
[385444857,1757854252111,-500.0,0.00021703,2]
[385444858,1757854252121,-500.0,0.00021703,2]
[385444859,1757854252130,-556.5641686,0.00021703,2]
[385444860,1757854252139,-22.39064329,0.00021703,2]
[385444861,1757854252150,-477.60935671,0.00021703,2]
[385444862,1757854252159,-193.73064329,0.00021703,2]
[385444863,1757854252271,-306.26935671,0.00021703,2]
[385444864,1757854252281,-500.0,0.00021703,2]
[385444865,1757854252290,-404.55993804,0.00021703,2]
[385444866,1757854252299,-366.06624992,0.00021703,2]
[385444867,1757854252310,-500.0,0.00021703,2]
[385444868,1757854252320,-500.0,0.00021703,2]
[385444869,1757854252329,-500.0,0.00021703,2]
[385444870,1757854252339,-500.0,0.00021703,2]
[385444871,1757854252347,-231.14587736,0.00021703,2]
[385444872,1757854252357,-297.14890292,0.00021703,2]
[385444873,1757854431616,-2527.66653166,0.000199,2]
[385444874,1757854431680,-3365.00970174,0.00020755,2]
[385444875,1757854431721,-10000.01,0.00020755,2]
[385444877,1757854571836,-1000.0,0.00020702,2]
[385444878,1757854571863,-108.89021274,0.00020755,2]
[385444879,1757854571896,-7782.22957452,0.00020755,2]
[385444880,1757854588183,1000.0,0.00027,120]
[385444881,1757854599876,-2516.53680565,0.000199,2]
[385444882,1757854642085,-300.039137,0.00020706,2]
[385444883,1757854645510,1300.0,0.00027397,120]
[385444884,1757854655700,1271.28809983,0.0003027,50]
[385444885,1757854706958,-2700.0,0.00020937,2]
[385444886,1757854733536,1221.32252783,0.00021148,2]
[385444887,1757854774388,2525.31108723,0.000199,2]
[385444888,1757854776003,-1000.0,0.00021149,2]
[385444889,1757854812481,-1525.31108723,0.00021149,2]
[385444890,1757854812507,-500.0,0.00021149,2]
[385444891,1757854812533,-500.0,0.00021149,2]
[385444892,1757854812559,-500.0,0.00021149,2]
[385444893,1757854812588,-168.0,0.00021511,2]
[385444894,1757854812614,-1200.0,0.00021565,2]
[385444895,1757854812643,-580.0,0.00021565,2]
[385444896,1757854955405,2356.95701498,0.000199,2]
[385444897,1757854986448,890.7809152,0.00020643,2]
[385444898,1757855012810,-2356.95701474,0.00021149,2]
[385444899,1757855012840,-6.13623412,0.00021566,2]
[385444900,1757855023041,-4726.18649772,0.00021566,2]
[385444901,1757855032851,-547.63700456,0.00021566,2]
[385444902,1757855032881,-168.0,0.00021596,2]
[385444903,1757855032908,-1000.0,0.000216,2]
[385444904,1757855032936,-1000.0,0.000216,3]
[385444905,1757855032964,-300.0,0.00021601,2]
[385444906,1757855032992,-1270.88214796,0.00021615,2]
[385444907,1757855033024,-168.0,0.00021629,2]
[385444908,1757855042897,-1200.0,0.00021714,2]
[385444909,1757855042942,-365.03419155,0.00021715,2]
[385444910,1757855043147,300.0,0.00021715,2]
[385444911,1757855072371,200.88149034,0.00021616,2]
[385444912,1757855102651,300.0,0.00021715,2]
[385444913,1757855103503,150.0,0.00021715,2]
[385444914,1757855110404,250.0,0.00021703,2]
[385444915,1757855110919,250.0,0.00021703,2]
[385444916,1757855111662,250.0,0.00021703,2]
[385444917,1757855112364,250.0,0.00021703,2]
[385444918,1757855113349,168.0,0.00021456,2]
[385444919,1757855126310,168.0,0.00021027,2]
[385444920,1757855129267,168.0,0.00021113,2]
[385444921,1757855136319,2199.82654735,0.000199,2]
[385444922,1757855136431,2199.82654709,0.00021149,2]
[385444923,1757855162651,15.40703212,0.00021715,2]
[385444924,1757855162674,284.59296788,0.00021715,2]
[385444926,1757855208150,-1000.0,0.00021716,2]
[385444927,1757855208178,-1000.0,0.00021716,2]
[385444928,1757855208207,-1000.0,0.00021716,2]
[385444929,1757855208235,-1000.0,0.00021716,2]
[385444930,1757855208263,-1000.0,0.00021716,2]
[385444931,1757855208522,-1000.0,0.00021716,2]
[385444932,1757855208549,-1000.0,0.00021716,2]
[385444933,1757855208578,-1000.0,0.00021716,2]
[385444934,1757855208606,-422.86166854,0.00021716,2]
[385444935,1757855208634,-217.77739939,0.00021727,2]
[385444936,1757855208662,-422.86166853,0.00021741,2]
[385444937,1757855208693,-168.0,0.00021761,2]
[385444938,1757855208722,-422.86166853,0.00021767,2]
[385444939,1757855208748,-233.1999649,0.00021769,2]
[385444940,1757855208776,-64.88526022,0.00021769,2]
[385444941,1757855208911,-95.11473978,0.00021769,2]
[385444942,1757855208939,-160.0,0.00021771,2]
[385444943,1757855208967,-160.0,0.00021772,2]
[385444944,1757855208996,-160.0,0.00021772,2]
[385444945,1757855209024,-160.0,0.00021772,2]
[385444946,1757855209052,-422.86166853,0.00021792,2]
[385444947,1757855209080,-1000.0,0.00021794,2]
[385444948,1757855209108,-150.0,0.000218,2]
[385444949,1757855209136,-1000.0,0.000218,4]
[385444950,1757855209164,-431.12718338,0.00021807,3]
[385444951,1757855209307,-2521.80281662,0.00021807,3]
[385444952,1757855209335,-1476.46,0.00021807,3]
[385444953,1757855209364,-738.23,0.00021807,3]
[385444954,1757855209393,-157.90436676,0.00021807,3]
[385444955,1757855209429,-211.21563324,0.00021807,3]
[385444956,1757855209458,-184.56,0.00021807,3]
[385444957,1757855209537,-553.68,0.00021807,3]
[385444958,1757855209579,-1123.95,0.00021807,3]
[385444959,1757855210338,-1526.80733838,0.00021815,2]
[385444960,1757855210360,-10000.01,0.00021815,2]
[385444961,1757855218200,-706.24543313,0.00021766,2]
[385444962,1757855218222,-8587.51913374,0.00021766,2]
[385444963,1757855218358,-561.97,0.00021807,3]
[385444964,1757855218386,-2237.79491048,0.00021815,2]
[385444965,1757855218419,-4400.48017904,0.00021815,2]
[385444966,1757855218596,-500.0,0.00021815,2]
[385444967,1757855218629,-9000.01,0.00021816,2]
[385444968,1757855218759,-10000.01,0.00021816,2]
[385444969,1757855218866,-10000.01,0.00021816,2]
[385444970,1757855218992,-10000.01,0.00021816,2]
[385444971,1757855219128,-10000.01,0.00021816,2]
[385444972,1757855228174,-160.0,0.00021772,2]
[385444973,1757855228203,-280.99,0.00021807,3]
[385444974,1757855228231,-300.0,0.00021815,2]
[385444975,1757855228259,-999.95,0.00021816,2]
[385444976,1757855228287,-329.93412339,0.00021816,2]
[385444977,1757855228316,-392.11780382,0.00021816,2]
[385444978,1757855228347,-500.0,0.00021816,2]
[385444979,1757855228378,-500.0,0.00021816,2]
[385444980,1757855228407,-500.0,0.00021816,2]
[385444981,1757855228437,-500.0,0.00021816,2]
[385444982,1757855228465,-162.51091168,0.00021816,2]
[385444983,1757855228493,-249.00432222,0.00021816,2]
[385444984,1757855228595,-250.99567778,0.00021816,2]
[385444985,1757855228624,-500.0,0.00021816,2]
[385444986,1757855228652,-500.0,0.00021816,2]
[385444987,1757855228681,-500.0,0.00021816,2]
[385444988,1757855228708,-500.0,0.00021816,2]
[385444989,1757855228737,-500.0,0.00021816,2]
[385444990,1757855228766,-500.0,0.00021816,2]
[385444991,1757855228795,-500.0,0.00021816,2]
[385444992,1757855228824,-561.19088594,0.00021816,2]
[385444993,1757855228854,-500.0,0.00021816,2]
[385444994,1757855229192,-250.99567778,0.00021816,2]
[385444995,1757855229207,-249.00432222,0.00021816,2]
[385444996,1757855229216,-126.63255034,0.00021816,2]
[385444997,1757855252761,3000.0,0.00021148,2]
[385444998,1757855272250,1500.0,0.00020972,2]
[385444999,1757855317099,2185.12293327,0.000199,2]
[385445000,1757855328151,168.0,0.00020875,2]